bitfinex-derivatives/quotes_SOLF0:USTF0_20241224
["timestamp","ask_amount","ask_price","bid_price","bid_amount"]
[1735028196520,2.5989,192.66,192.61,2.5996]
[1735028198815,2.5988,192.67,192.62,2.5994]
[1735028199022,4.5515,192.69,192.56,12.9790237]
[1735028199520,1.5315,192.69,192.65,2.5991]
[1735028200220,13.2543937,192.7,192.6,3.42]
[1735028200525,0.27537,192.7,192.67,2.5988]
[1735028201224,0.27537,192.7,192.68,2.5986]
[1735028201621,0.27537,192.7,192.62,12.9790237]
[1735028201827,0.27537,192.7,192.69,2.5985]
[1735028203024,0.27537,192.7,192.62,12.9790237]
[1735028203025,0.27537,192.7,192.67,2.5987]
[1735028207728,0.27537,192.7,192.68,2.5987]
[1735028210931,2.5981,192.73,192.68,2.5987]
[1735028211524,14.5876237,192.75,192.62,12.9790237]
[1735028211726,14.5876237,192.75,192.7,2.5984]
[1735028212931,14.5876237,192.75,192.62,12.9790237]
[1735028213132,1.6086,192.75,192.65,12.9790237]
[1735028213323,1.6086,192.75,192.66,3.42]
[1735028213523,1.6086,192.75,192.68,2.5986]
[1735028213831,1.6086,192.75,192.66,3.42]
[1735028214432,1.6086,192.75,192.72,2.598]
[1735028214626,1.6086,192.75,192.66,3.42]
[1735028214933,2.5973,192.79,192.74,2.5979]
[1735028215133,2.5973,192.79,192.68,12.9790237]
[1735028216032,2.5974,192.78,192.73,2.598]
[1735028216226,0.30381,192.8,192.68,12.9790237]
[1735028216431,12.9790237,192.75,192.66,3.42]
[1735028216827,2.5977,192.76,192.71,2.5983]
[1735028217031,12.9790237,192.78,192.71,2.5983]
[1735028217432,2.5976,192.76,192.72,2.5981]
[1735028217733,12.9790237,192.78,192.66,16.3990237]
[1735028217931,2.5975,192.77,192.66,16.3990237]
[1735028218129,12.9790237,192.78,192.74,2.5979]
[1735028221331,15.5763237,192.78,192.74,2.5979]
[1735028221933,12.9790237,192.78,192.7,2.5983]
[1735028222534,2.5978,192.75,192.71,2.5983]
[1735028224336,0.30381,192.8,192.69,12.9790237]
[1735028225742,0.30381,192.8,192.7,1.4871]
[1735028226041,0.30381,192.8,192.72,12.9790237]
[1735028226244,0.30381,192.8,192.79,2.5972]
[1735028226939,15.5752237,192.87,192.81,2.5969]
[1735028230336,12.9790237,192.87,192.72,12.9790237]
[1735028230537,2.5965,192.85,192.72,12.9790237]
[1735028231038,12.9790237,192.87,192.72,12.9790237]
[1735028231238,12.9790237,192.81,192.71,3.32]
[1735028231437,1.4726,192.8,192.71,3.32]
[1735028232536,4.0697,192.8,192.75,2.5977]
[1735028234738,5.9168,192.83,192.78,2.5972]
[1735028234940,7.452,192.83,192.78,2.5972]
[1735028235132,4.132,192.83,192.78,2.5972]
[1735028235733,2.5969,192.81,192.76,2.5975]
[1735028241348,2.5968,192.82,192.78,2.5973]
[1735028241638,19.3522237,192.88,192.71,3.32]
[1735028241843,19.3522237,192.88,192.76,12.9790237]
[1735028242143,2.5961,192.87,192.82,2.5967]
[1735028243243,2.5963,192.86,192.82,2.5967]
[1735028243945,2.5964,192.85,192.8,2.597]
[1735028245641,2.5968,192.83,192.77,2.5974]
[1735028245847,12.9790237,192.87,192.77,2.5974]
[1735028246047,12.9790237,192.87,192.75,3.32]
[1735028246342,2.5964,192.86,192.76,12.9790237]
[1735028246547,3.32,192.88,192.76,12.9790237]
[1735028247053,12.9790237,192.87,192.75,3.32]
[1735028247741,2.5969,192.82,192.77,2.5974]
[1735028250245,2.597,192.81,192.77,2.5974]
[1735028250954,2.597,192.81,192.73,12.9790237]
[1735028251152,2.597,192.81,192.76,2.5976]
[1735028252943,12.9790237,192.84,192.7,12.9790237]
[1735028253153,12.9790237,192.84,192.66,1.585]
[1735028253154,3.0551,192.8,192.69,16.2990237]
[1735028254545,2.5975,192.77,192.69,16.2990237]
[1735028255755,2.5975,192.77,192.72,2.598]
[1735028256154,3.0551,192.8,192.69,12.9790237]
[1735028256351,12.9790237,192.78,192.7,2.5984]
[1735028256553,12.9790237,192.78,192.66,12.9790237]
[1735028256751,12.9790237,192.78,192.64,3.32]
[1735028257353,12.9790237,192.75,192.64,3.32]
[1735028257555,1.5759,192.74,192.64,3.32]
[1735028257955,12.9790237,192.72,192.56,48.21663154]
[1735028258253,1.6074,192.71,192.57,16.2990237]
[1735028258457,2.5987,192.68,192.63,2.5992]
[1735028259856,2.5989,192.67,192.62,2.5995]
[1735028260053,16.2390237,192.69,192.57,12.9790237]
[1735028260354,2.5993,192.64,192.58,2.6]
[1735028261957,12.9790237,192.66,192.56,50.81683154]
[1735028262158,12.9790237,192.66,192.54,12.9790237]
[1735028262159,14.4921237,192.63,192.52,3.26]
[1735028262361,2.5996,192.61,192.55,2.6003]
[1735028262667,2.5996,192.61,192.52,3.26]
[1735028263467,2.5996,192.61,192.55,2.6004]
[1735028263857,1.4846,192.62,192.5,12.9790237]
[1735028264059,12.9790237,192.57,192.49,2.6012]
[1735028264356,4.7777,192.56,192.49,2.6012]
[1735028264753,7.3781,192.56,192.49,2.6012]
[1735028265159,12.9790237,192.54,192.47,2.6014]
[1735028266465,1.4935,192.53,192.47,2.6014]
[1735028268162,1.4935,192.53,192.45,2.6017]
[1735028268363,3.113,192.53,192.45,2.6017]
[1735028269571,2.6009,192.52,192.45,2.6017]
[1735028270063,1.4935,192.53,192.46,12.9790237]
[1735028270268,1.5177,192.56,192.46,12.9790237]
[1735028270567,1.5177,192.56,192.46,16.2390237]
[1735028271163,1.5177,192.56,192.51,2.6009]
[1735028271467,4.0745,192.58,192.46,16.2390237]
[1735028272463,4.0745,192.58,192.52,2.6008]
[1735028276971,2.6003,192.56,192.5,2.601]
[1735028280168,2.9942,192.58,192.46,12.9790237]
[1735028280369,5.5943,192.58,192.52,2.6008]
[1735028281472,2.6003,192.56,192.5,2.601]
[1735028282063,2.6002,192.57,192.52,2.6007]
[1735028286469,2.9942,192.58,192.52,2.6007]
[1735028286676,2.6003,192.56,192.52,2.6007]
[1735028286871,2.6003,192.56,192.46,12.9790237]
[1735028287273,2.9942,192.58,192.46,12.9790237]
[1735028287671,2.9942,192.58,192.48,2.6013]
[1735028287874,2.6007,192.54,192.48,2.6013]
[1735028289274,2.6009,192.52,192.46,15.5805237]
[1735028289579,3.28,192.53,192.4,49.75804452]
[1735028289774,2.6011,192.5,192.45,2.6018]
[1735028289977,3.34,192.52,192.44,12.9790237]
[1735028290172,3.34,192.57,192.44,12.9790237]
[1735028290377,2.6004,192.55,192.5,2.601]
[1735028290577,3.34,192.57,192.47,12.9790237]
[1735028291280,2.6007,192.54,192.49,2.6012]
[1735028291468,3.34,192.57,192.47,12.9790237]
[1735028291873,3.34,192.57,192.47,2.6014]
[1735028292276,2.6011,192.51,192.41,3.34]
[1735028292474,3.34,192.57,192.41,16.3190237]
[1735028292678,12.9790237,192.53,192.41,16.3190237]
[1735028293477,12.9790237,192.53,192.44,2.6019]
[1735028293478,2.6014,192.48,192.44,2.6019]
[1735028293678,2.6014,192.48,192.41,16.3190237]
[1735028293980,2.6014,192.48,192.43,2.6019]
[1735028294685,3.34,192.51,192.41,12.9790237]
[1735028294980,2.6018,192.46,192.42,2.6022]
[1735028295881,3.0901,192.5,192.4,48.25804452]
[1735028296182,3.0901,192.5,192.41,12.9790237]
[1735028296573,2.6017,192.46,192.41,15.5812237]
[1735028296879,3.0901,192.5,192.4,48.25804452]
[1735028298174,11.39715662,192.5,192.42,8.30705662]
[1735028298579,2.6015,192.47,192.43,2.602]
[1735028299782,11.39715662,192.5,192.43,2.602]
[1735028299982,2.6014,192.48,192.43,2.602]
[1735028301088,2.6014,192.48,192.44,2.6019]
[1735028301381,3.0901,192.5,192.44,8.30705662]
[1735028301584,1.5277,192.5,192.45,2.6017]
[1735028301773,9.83475662,192.5,192.45,2.6017]
[1735028302181,9.83475662,192.5,192.43,2.602]
[1735028303175,2.6014,192.48,192.43,2.602]
[1735028304884,4.1288,192.5,192.45,2.6017]
[1735028305192,4.1288,192.5,192.44,8.30705662]
[1735028306286,30.00207176,192.57,192.46,8.30705662]
[1735028306590,8.30705662,192.55,192.46,8.30705662]
[1735028307487,2.6008,192.53,192.46,8.30705662]
[1735028308487,2.6008,192.53,192.48,2.6014]
[1735028309591,2.6008,192.53,192.48,10.90845662]
[1735028311493,10.90785662,192.53,192.48,2.6014]
[1735028314599,2.6008,192.53,192.49,2.6012]
[1735028314999,1.5283,192.56,192.5,8.30705662]
[1735028316498,2.6004,192.55,192.51,2.6009]
[1735028318297,2.78864,192.57,192.53,2.6006]
[1735028319101,2.6003,192.57,192.53,2.6006]
[1735028322704,10.90735662,192.57,192.53,2.6006]
[1735028323305,2.6004,192.55,192.5,2.601]
[1735028323506,8.30705662,192.54,192.5,2.601]
[1735028324905,10.90775662,192.54,192.5,2.601]
[1735028326207,2.6007,192.53,192.47,8.30705662]
[1735028328111,2.6007,192.53,192.49,2.6011]
[1735028330406,2.6007,192.53,192.5,2.6011]
[1735028330913,10.90765662,192.54,192.5,2.6011]
[1735028331214,1.4717,192.59,192.49,8.30705662]
[1735028331416,1.4717,192.59,192.43,3.36]
[1735028331417,1.4717,192.59,192.52,8.30705662]
[1735028331617,4.0716,192.59,192.52,8.30705662]
[1735028331911,1.4717,192.59,192.54,8.30705662]
[1735028332108,11.66705662,192.61,192.54,8.30705662]
[1735028332413,31.49853176,192.63,192.54,8.30705662]
[1735028332610,31.49853176,192.63,192.56,8.30705662]
[1735028332810,29.89053176,192.63,192.58,8.30705662]
[1735028333012,1.5266,192.65,192.58,8.30705662]
[1735028333211,11.66705662,192.66,192.58,8.30705662]
[1735028333915,14.26605662,192.66,192.61,2.5996]
[1735028334511,2.5991,192.65,192.6,2.5997]
[1735028334714,8.30705662,192.62,192.55,8.30705662]
[1735028334913,8.30705662,192.6,192.53,8.30705662]
[1735028335309,8.30705662,192.58,192.51,8.30705662]
[1735028336316,2.6002,192.57,192.53,2.6007]
[1735028337213,2.6,192.58,192.53,2.6007]
[1735028341114,2.6,192.58,192.54,2.6005]
[1735028343518,2.6,192.58,192.49,3.36]
[1735028343814,2.6003,192.56,192.47,12.96980883]
[1735028344921,2.6003,192.56,192.5,2.601]
[1735028345322,4.2293,192.56,192.5,2.601]
[1735028346519,1.629,192.56,192.48,2.6012]
[1735028347119,2.6007,192.54,192.48,2.6012]
[1735028347422,5.9607,192.54,192.48,2.6012]
[1735028348022,2.6007,192.53,192.48,2.6012]
[1735028348319,2.6007,192.53,192.44,12.96980883]
[1735028348526,1.629,192.56,192.47,12.96980883]
[1735028349021,1.629,192.56,192.47,16.32980883]
[1735028349524,1.629,192.56,192.52,2.6008]
[1735028351919,12.96980883,192.62,192.55,2.6004]
[1735028352125,3.36,192.63,192.5,12.96980883]
[1735028352426,21.52896677,192.64,192.5,12.96980883]
[1735028352624,24.88896677,192.64,192.5,12.96980883]
[1735028353323,17.82290883,192.64,192.5,12.96980883]
[1735028353525,2.5996,192.61,192.56,2.6003]
[1735028354231,2.5999,192.59,192.54,2.6005]
[1735028354525,17.82290883,192.64,192.5,12.96980883]
[1735028354725,2.5994,192.63,192.59,2.5999]
[1735028354928,2.5994,192.63,192.53,12.96980883]
[1735028354929,1.4931,192.64,192.53,16.32980883]
[1735028356228,4.0923,192.64,192.56,2.6002]
[1735028356423,4.0923,192.64,192.53,16.32980883]
[1735028356424,1.4931,192.64,192.53,16.32980883]
[1735028356626,14.46290883,192.64,192.53,3.36]
[1735028356824,2.5999,192.59,192.5,12.96980883]
[1735028357624,2.5997,192.61,192.55,2.6004]
[1735028359529,12.96980883,192.61,192.5,12.96980883]
[1735028359821,12.96980883,192.61,192.43,55.4991873]
[1735028359822,3.36,192.6,192.51,2.6008]
[1735028360226,2.6002,192.57,192.52,2.6007]
[1735028362332,3.36,192.6,192.46,12.96980883]
[1735028362529,5.9598,192.6,192.55,2.6004]
[1735028363633,3.36,192.6,192.46,12.96980883]
[1735028364035,2.6004,192.56,192.5,2.6011]
[1735028365537,2.6004,192.56,192.51,2.6009]
[1735028369339,8.3003593,192.58,192.51,2.6009]
[1735028369538,2.6004,192.55,192.5,8.3003593]
[1735028369738,2.6004,192.55,192.5,10.9014593]
[1735028370243,8.3003593,192.58,192.5,8.3003593]
[1735028371140,29.75733176,192.64,192.5,3.36]
[1735028371345,29.75733176,192.64,192.58,8.3003593]
[1735028371939,29.75733176,192.64,192.6,2.5997]
[1735028372140,7.06605794,192.64,192.58,8.3003593]
[1735028372339,7.06605794,192.64,192.6,8.3003593]
[1735028372536,7.06605794,192.64,192.63,2.5993]
[1735028372844,0.21561,192.69,192.63,2.5993]
[1735028373341,0.21561,192.69,192.64,2.5992]
[1735028373542,0.21561,192.69,192.64,8.3003593]
[1735028373938,0.21561,192.69,192.67,2.5988]
[1735028374538,0.21561,192.69,192.64,3.36]
[1735028374739,28.26423176,192.76,192.66,12.94805149]
[1735028375141,1.5554,192.77,192.66,12.94805149]
[1735028375541,28.26423176,192.8,192.69,12.94805149]
[1735028375837,28.26423176,192.8,192.7,3.36]
[1735028376036,28.26423176,192.8,192.72,12.94805149]
[1735028376442,1.5668,192.82,192.76,2.5975]
[1735028377342,1.5668,192.82,192.77,2.5973]
[1735028377734,12.94805149,192.84,192.77,2.5973]
[1735028377938,12.94805149,192.84,192.75,2.5976]
[1735028378137,12.94805149,192.81,192.66,3.36]
[1735028378338,12.94805149,192.78,192.66,3.36]
[1735028378538,16.30805149,192.78,192.66,3.36]
[1735028378846,16.30805149,192.78,192.65,13.09605149]
[1735028379139,2.5979,192.74,192.65,12.94805149]
[1735028379346,1.6081,192.77,192.65,12.94805149]
[1735028379741,1.5852,192.76,192.65,12.94805149]
[1735028380042,4.1828,192.76,192.68,2.5987]
[1735028381744,1.5852,192.76,192.65,12.94805149]
[1735028382040,1.5852,192.76,192.71,2.5983]
[1735028382646,1.5852,192.76,192.7,2.5984]
[1735028382845,1.5852,192.76,192.65,12.94805149]
[1735028383242,4.1829,192.76,192.69,2.5985]
[1735028383539,1.5852,192.76,192.65,12.94805149]
[1735028384549,1.5852,192.76,192.7,2.5983]
[1735028386750,15.54555149,192.78,192.7,2.5983]
[1735028386948,1.4875,192.79,192.73,2.598]
[1735028387948,2.5969,192.82,192.75,2.5976]
[1735028388149,2.5969,192.82,192.7,3.38]
[1735028388543,2.5969,192.82,192.75,2.5977]
[1735028388939,12.94805149,192.83,192.7,3.38]
[1735028388940,2.5971,192.8,192.7,3.38]
[1735028389949,2.5971,192.8,192.73,2.5979]
[1735028390646,2.5971,192.8,192.7,3.38]
[1735028390847,2.5971,192.8,192.74,2.5979]
[1735028391042,16.32805149,192.83,192.7,3.38]
[1735028391250,3.38,192.85,192.77,2.5973]
[1735028391651,2.5967,192.83,192.77,2.5973]
[1735028392650,2.5967,192.83,192.78,2.5973]
[1735028393555,5.9765,192.85,192.78,2.5973]
[1735028393948,1.5487,192.86,192.77,12.94805149]
[1735028394149,3.0945,192.87,192.77,16.30805149]
[1735028395950,3.0945,192.87,192.82,2.5967]
[1735028396455,2.5957,192.9,192.8,12.94805149]
[1735028396657,2.9598,192.93,192.8,12.94805149]
[1735028396856,2.9598,192.93,192.83,12.94805149]
[1735028397053,2.5956,192.91,192.86,2.5962]
[1735028397355,2.9598,192.93,192.83,3.36]
[1735028397356,12.94805149,192.92,192.83,3.36]
[1735028397556,2.5959,192.89,192.83,2.5966]
[1735028397756,2.5959,192.89,192.71,0.144]
[1735028397757,12.94805149,192.89,192.71,0.144]
[1735028397947,1.6235,192.88,192.74,12.94805149]
[1735028398153,2.5965,192.85,192.8,2.597]
[1735028399250,2.5966,192.84,192.78,2.5972]
[1735028401256,2.5966,192.84,192.74,16.30805149]
[1735028401453,2.5966,192.84,192.79,2.5972]
[1735028401853,1.5805,192.85,192.74,16.30805149]
[1735028403262,14.52855149,192.85,192.74,16.30805149]
[1735028403953,1.5805,192.85,192.74,16.30805149]
[1735028404154,1.5805,192.85,192.77,12.94805149]
[1735028404356,14.57155149,192.88,192.77,12.94805149]
[1735028404558,1.6235,192.88,192.83,2.5966]
[1735028404765,1.6235,192.88,192.77,12.94805149]
[1735028404956,1.5364,192.92,192.8,12.94805149]
[1735028405153,1.5364,192.92,192.81,3.36]
[1735028405661,1.5364,192.92,192.83,12.94805149]
[1735028405862,1.6316,192.96,192.83,12.94805149]
[1735028406262,2.5952,192.95,192.89,2.5958]
[1735028406761,12.94805149,192.91,192.73,3.36]
[1735028406966,1.6316,192.96,192.8,2.5969]
[1735028406967,2.5963,192.86,192.8,2.5969]
[1735028407163,2.5963,192.86,192.74,12.94805149]
[1735028407363,15.54415149,192.87,192.82,2.5968]
[1735028407565,1.4994,192.89,192.74,12.94805149]
[1735028407866,2.5963,192.86,192.81,2.5968]
[1735028408061,12.94805149,192.87,192.74,16.30805149]
[1735028408265,12.94805149,192.87,192.72,1.54]
[1735028408266,12.94805149,192.84,192.72,1.54]
[1735028408467,2.5969,192.82,192.75,2.5976]
[1735028408965,12.94805149,192.84,192.74,2.5979]
[1735028408966,2.5971,192.8,192.74,2.5979]
[1735028409356,2.5971,192.8,192.73,3.36]
[1735028410167,12.94805149,192.84,192.73,3.36]
[1735028410368,12.94805149,192.87,192.73,3.36]
[1735028410561,12.94805149,192.87,192.76,12.94805149]
[1735028410961,2.5963,192.86,192.81,2.5969]
[1735028412066,4.9055,192.88,192.82,2.5967]
[1735028412067,4.1415,192.88,192.82,2.5967]
[1735028412762,2.5961,192.87,192.82,2.5967]
[1735028413560,1.4994,192.89,192.85,2.5963]
[1735028413764,1.4994,192.89,192.79,16.36805149]
[1735028415566,2.596,192.88,192.79,16.36805149]
[1735028415768,2.596,192.88,192.79,3.42]
[1735028415963,1.4994,192.89,192.84,2.5964]
[1735028416169,1.4994,192.89,192.79,3.42]
[1735028416767,1.4994,192.89,192.86,2.5962]
[1735028416972,1.4994,192.89,192.79,16.36805149]
[1735028417869,1.4994,192.89,192.86,2.5962]
[1735028418668,1.4994,192.89,192.85,2.5964]
[1735028418872,12.94805149,192.87,192.73,3.42]
[1735028419062,3.42,192.86,192.73,3.42]
[1735028419269,3.42,192.86,192.8,2.5971]
[1735028419871,3.42,192.86,192.73,3.42]
[1735028420069,2.5965,192.84,192.79,2.5972]
[1735028420473,12.94805149,192.84,192.72,12.94805149]
[1735028420771,1.6169,192.83,192.73,3.42]
[1735028420969,4.2137,192.83,192.73,3.42]
[1735028421175,1.6169,192.83,192.73,3.42]
[1735028421978,4.2136,192.83,192.78,2.5972]
[1735028423068,4.2136,192.83,192.79,2.5972]
[1735028423271,1.6169,192.83,192.73,3.42]
[1735028423575,8.64136427,192.89,192.75,12.94805149]
[1735028423775,8.64136427,192.89,192.81,2.5969]
[1735028423976,8.64136427,192.89,192.78,12.94805149]
[1735028424177,1.4994,192.89,192.78,12.94805149]
[1735028424477,2.596,192.88,192.79,3.42]
[1735028425881,2.596,192.88,192.83,2.5967]
[1735028427475,15.54425149,192.87,192.81,2.5968]
[1735028427682,12.94805149,192.87,192.75,3.42]
[1735028427879,12.94805149,192.87,192.72,12.94805149]
[1735028428079,2.5967,192.83,192.72,12.94805149]
[1735028428779,2.5968,192.82,192.77,2.5974]
[1735028433474,14.57915149,192.84,192.75,2.5976]
[1735028433678,14.42365149,192.81,192.69,12.94805149]
[1735028433878,1.6022,192.8,192.69,12.94805149]
[1735028434472,2.5974,192.78,192.73,2.5979]
[1735028440679,2.5979,192.74,192.69,2.5985]
[1735028440884,12.94805149,192.72,192.62,1.5003]
[1735028441589,12.94805149,192.72,192.68,2.5986]
[1735028446793,12.94805149,192.72,192.62,1.5003]
[1735028446995,15.54625149,192.72,192.67,2.5988]
[1735028447194,12.94805149,192.72,192.59,12.94805149]
[1735028447391,12.94805149,192.69,192.59,3.38]
[1735028447598,2.5989,192.67,192.62,2.5995]
[1735028447796,2.5989,192.67,192.59,3.38]
[1735028448194,15.54675149,192.69,192.63,2.5994]
[1735028448395,12.94805149,192.69,192.63,2.5994]
[1735028448694,12.94805149,192.69,192.59,3.38]
[1735028448897,1.5526,192.72,192.59,16.32805149]
[1735028449198,12.94805149,192.78,192.65,12.94805149]
[1735028449499,15.54535149,192.78,192.65,16.32805149]
[1735028450389,15.54535149,192.78,192.73,2.598]
[1735028450798,2.5976,192.76,192.65,16.32805149]
[1735028451192,12.94805149,192.78,192.72,2.5981]
[1735028451795,2.5975,192.77,192.72,2.5981]
[1735028451996,12.94805149,192.78,192.73,2.5979]
[1735028452400,15.54535149,192.78,192.65,16.32805149]
[1735028452901,12.94805149,192.78,192.65,16.32805149]
[1735028453096,12.94805149,192.78,192.74,2.5978]
[1735028453692,12.94805149,192.84,192.71,16.32805149]
[1735028453998,7.14196427,192.87,192.74,12.94805149]
[1735028453999,4.672,192.86,192.74,12.94805149]
[1735028454198,4.672,192.86,192.75,3.38]
[1735028454495,4.672,192.86,192.82,2.5968]
[1735028455400,4.672,192.86,192.8,2.5969]
[1735028455701,4.672,192.86,192.75,3.38]
[1735028456502,4.672,192.86,192.81,2.5969]
[1735028457996,2.5967,192.83,192.77,2.5974]
[1735028458701,4.672,192.86,192.7,3.38]
[1735028458702,12.94805149,192.82,192.7,3.38]
[1735028458900,28.56785709,192.95,192.77,12.94805149]
[1735028459198,28.56785709,192.95,192.83,12.94805149]
[1735028459405,28.56785709,192.95,192.86,12.94805149]
[1735028459593,7.14196427,192.92,192.86,12.94805149]
[1735028460799,7.14196427,192.92,192.81,1.6612]
[1735028461006,7.14196427,192.92,192.81,5.0412]
[1735028461204,16.32805149,192.95,192.81,5.0412]
[1735028462405,2.5954,192.93,192.87,2.5961]
[1735028462607,12.94805149,192.92,192.81,4.9019]
[1735028462998,12.94805149,192.92,192.81,3.38]
[1735028463494,4.1602,192.91,192.84,2.5965]
[1735028463898,4.1602,192.91,192.81,3.38]
[1735028464100,4.1602,192.91,192.85,2.5964]
[1735028465603,2.5957,192.9,192.83,2.5965]
[1735028465803,1.5646,192.91,192.83,2.5965]
[1735028466005,1.6178,192.89,192.83,2.5965]
[1735028467401,4.2137,192.89,192.83,2.5965]
[1735028467604,3.38,192.88,192.79,2.5971]
[1735028467799,3.38,192.88,192.71,3.38]
[1735028468002,2.5967,192.83,192.71,3.38]
[1735028469503,2.5967,192.83,192.77,2.5974]
[1735028470708,2.5967,192.83,192.78,2.5973]
[1735028471205,20.68584747,192.86,192.78,2.5973]
[1735028471407,2.5965,192.85,192.78,2.5973]
[1735028471702,20.68584747,192.86,192.8,2.5971]
[1735028472007,2.5964,192.86,192.8,2.5971]
[1735028474506,1.6178,192.89,192.85,2.5964]
[1735028474707,1.6178,192.89,192.78,20.68584747]
[1735028474907,1.6178,192.89,192.79,3.38]
[1735028475511,1.6178,192.89,192.87,2.5961]
[1735028475707,20.68584747,192.96,192.79,3.38]
[1735028476015,24.06584747,192.96,192.82,20.68584747]
[1735028476313,24.06584747,192.96,192.92,2.5954]
[1735028476611,24.06584747,192.96,192.83,1.5145]
[1735028477109,24.06584747,192.96,192.8,3.38]
[1735028477609,8.0744,192.99,192.82,20.68584747]
[1735028477808,4.6944,192.99,192.83,1.6533]
[1735028478009,8.0744,192.99,192.83,1.6533]
[1735028478309,2.5948,192.98,192.92,2.5953]
[1735028479108,20.68584747,193.05,192.86,24.06584747]
[1735028479407,20.68584747,193.01,192.86,24.06584747]
[1735028479613,2.5946,192.99,192.92,2.5954]
[1735028480412,3.38,193.0,192.94,2.5951]
[1735028481509,26.66014747,193.01,192.94,2.5951]
[1735028482615,26.66014747,193.01,192.95,2.595]
[1735028484625,2.5946,192.99,192.93,2.5953]
[1735028485313,3.36,193.01,192.96,2.5949]
[1735028486315,16.27579436,193.01,192.96,2.5949]
[1735028486618,16.27579436,193.01,192.88,16.29579436]
[1735028486814,18.87009436,193.01,192.88,16.29579436]
[1735028487011,16.27579436,193.01,192.88,16.29579436]
[1735028487318,2.5947,192.98,192.91,2.5955]
[1735028487620,15.51049436,192.98,192.91,2.5955]
[1735028487918,15.51089436,192.95,192.89,2.5957]
[1735028488120,4.8741,192.94,192.83,1.5145]
[1735028489621,7.4694,192.94,192.88,2.596]
[1735028491915,12.91579436,192.92,192.67,83.99266321]
[1735028492112,12.91579436,192.89,192.75,12.91579436]
[1735028492312,3.36,192.88,192.75,12.91579436]
[1735028492513,2.5965,192.85,192.8,2.5971]
[1735028494425,2.5963,192.86,192.81,2.5969]
[1735028495521,2.5964,192.85,192.79,2.5971]
[1735028496017,12.91579436,192.86,192.72,12.91579436]
[1735028496422,12.91579436,192.86,192.72,16.29579436]
[1735028496623,2.5967,192.83,192.78,2.5972]
[1735028497528,5.9765,192.85,192.8,2.5971]
[1735028497917,3.38,192.85,192.8,2.5971]
[1735028498123,2.5965,192.84,192.8,2.5971]
[1735028498327,2.5965,192.84,192.78,2.5972]
[1735028498733,2.5967,192.83,192.78,2.5972]
[1735028499923,5.9765,192.85,192.79,2.5971]
[1735028500128,5.9765,192.85,192.74,12.91579436]
[1735028500634,5.9765,192.85,192.79,2.5971]
[1735028501434,2.5965,192.84,192.79,2.5971]
[1735028502132,2.597,192.81,192.71,14.39129436]
[1735028502529,4.2007,192.83,192.77,2.5975]
[1735028502832,1.5883,192.82,192.77,2.5975]
[1735028503328,4.1851,192.82,192.77,2.5975]
[1735028505228,12.91579436,192.81,192.68,12.91579436]
[1735028505431,12.91579436,192.81,192.68,16.27579436]
[1735028506536,14.48309436,192.81,192.68,12.91579436]
[1735028506835,14.48309436,192.81,192.65,19.30419436]
[1735028507036,12.91579436,192.78,192.69,2.5984]
[1735028507235,3.36,192.77,192.69,2.5984]
[1735028507425,2.5979,192.75,192.69,2.5984]
[1735028507834,3.36,192.77,192.69,2.5984]
[1735028508230,2.598,192.73,192.69,2.5984]
[1735028508426,3.36,192.77,192.71,2.5982]
[1735028508731,2.5977,192.76,192.71,2.5982]
[1735028508925,3.36,192.77,192.64,48.19630739]
[1735028509125,1.5007,192.75,192.68,2.5986]
[1735028509732,2.5979,192.74,192.68,2.5986]
[1735028510531,4.1143,192.74,192.68,2.5986]
[1735028510738,2.5981,192.73,192.68,2.5986]
[1735028511642,1.5164,192.74,192.48,5.2026]
[1735028511643,12.91579436,192.72,192.48,5.2026]
[1735028511939,3.36,192.71,192.58,14.51189436]
[1735028512939,2.5987,192.68,192.62,2.5994]